[Event "Titled Tuesday Blitz July 26 Late 2022"]
[White "Dimitrov, Atanas"]
[Black "Suleymanli, Aydin"]
[WhiteFideId "2901315"]
[BlackFideId "13413937"]
[WhiteElo "2613"]
[BlackElo "2481"]
[Result "1-0"]
[Round "04"]
[TimeControl "180+1"]
[Date "2022.07.26"]
[WhiteClock "0:00:16"]
[BlackClock "0:00:01"]

1. Nf3 {[%clk 0:03:00]}  c5 {[%clk 0:02:56]} 2. c4 {[%clk 0:03:00]}  Nf6 {[%clk 0:02:53]} 3. Nc3 {[%clk 0:03:00]}  e6 {[%clk 0:02:52]} 4. e3 {[%clk 0:03:00]}  d5 {[%clk 0:02:52]} 5. d4 {[%clk 0:02:58]}  a6 {[%clk 0:02:52]} 6. cxd5 {[%clk 0:02:57]}  exd5 {[%clk 0:02:52]} 7. Be2 {[%clk 0:02:56]}  Nc6 {[%clk 0:02:51]} 8. O-O {[%clk 0:02:56]}  cxd4 {[%clk 0:02:27]} 9. Nxd4 {[%clk 0:02:55]}  Bd6 {[%clk 0:02:27]} 10. Bf3 {[%clk 0:02:51]}  O-O {[%clk 0:02:25]} 11. Nxc6 {[%clk 0:02:49]}  bxc6 {[%clk 0:02:26]} 12. b3 {[%clk 0:02:48]}  Re8 {[%clk 0:01:47]} 13. Bb2 {[%clk 0:02:47]}  Bf5 {[%clk 0:01:47]} 14. Rc1 {[%clk 0:02:44]}  Qe7 {[%clk 0:01:37]} 15. Ne2 {[%clk 0:02:35]}  Rac8 {[%clk 0:01:34]} 16. Ng3 {[%clk 0:02:31]}  Bd7 {[%clk 0:01:33]} 17. Qe2 {[%clk 0:02:29]}  a5 {[%clk 0:01:30]} 18. Rfd1 {[%clk 0:02:27]}  a4 {[%clk 0:01:23]} 19. bxa4 {[%clk 0:02:20]}  Ra8 {[%clk 0:01:22]} 20. Qc2 {[%clk 0:02:20]}  Reb8 {[%clk 0:01:01]} 21. Ba1 {[%clk 0:02:09]}  Qe6 {[%clk 0:00:54]} 22. Re1 {[%clk 0:01:36]}  Be5 {[%clk 0:00:43]} 23. Bxe5 {[%clk 0:01:31]}  Qxe5 {[%clk 0:00:43]} 24. Rb1 {[%clk 0:01:31]}  Rxb1 {[%clk 0:00:39]} 25. Rxb1 {[%clk 0:01:31]}  h5 {[%clk 0:00:40]} 26. Qb3 {[%clk 0:01:16]}  h4 {[%clk 0:00:30]} 27. Ne2 {[%clk 0:01:15]}  g5 {[%clk 0:00:29]} 28. Qc3 {[%clk 0:01:08]}  Qd6 {[%clk 0:00:26]} 29. Nd4 {[%clk 0:00:57]}  g4 {[%clk 0:00:24]} 30. Be2 {[%clk 0:00:58]}  Ne4 {[%clk 0:00:24]} 31. Qc2 {[%clk 0:00:56]}  g3 {[%clk 0:00:24]} 32. fxg3 {[%clk 0:00:51]}  hxg3 {[%clk 0:00:24]} 33. h3 {[%clk 0:00:51]}  Qa3 {[%clk 0:00:21]} 34. Bd3 {[%clk 0:00:49]}  Nc5 {[%clk 0:00:09]} 35. Nb3 {[%clk 0:00:31]}  Nxa4 {[%clk 0:00:08]} 36. Bf5 {[%clk 0:00:27]}  Bxf5 {[%clk 0:00:04]} 37. Qxf5 {[%clk 0:00:28]}  Qe7 {[%clk 0:00:04]} 38. Qg4+ {[%clk 0:00:27]}  Kf8 {[%clk 0:00:04]} 39. Qxg3 {[%clk 0:00:26]}  Nc3 {[%clk 0:00:04]} 40. Re1 {[%clk 0:00:24]}  Rxa2 {[%clk 0:00:05]} 41. Nd4 {[%clk 0:00:21]}  Qf6 {[%clk 0:00:02]} 42. Rf1 {[%clk 0:00:18]}  Qh6 {[%clk 0:00:01]} 43. Nf5 {[%clk 0:00:16]} 1-0


[Site "https://www.chess.com"]

[Event "Titled Tuesday Blitz July 26 Late 2022"]
[White "Federzoni, Enzo"]
[Black "Rosen, Eric"]
[WhiteFideId "2173301"]
[BlackFideId "2032562"]
[WhiteElo "1949"]
[BlackElo "2362"]
[Result "1-0"]
[Round "04"]
[TimeControl "180+1"]
[Date "2022.07.27"]
[WhiteClock "0:00:04"]
[BlackClock "0:00:01"]

1. e4 {[%clk 0:03:00]}  e5 {[%clk 0:02:53]} 2. Nf3 {[%clk 0:02:56]}  Nf6 {[%clk 0:02:52]} 3. Nxe5 {[%clk 0:02:56]}  Nc6 {[%clk 0:02:53]} 4. Nxc6 {[%clk 0:02:54]}  dxc6 {[%clk 0:02:54]} 5. Nc3 {[%clk 0:02:52]}  Bc5 {[%clk 0:02:54]} 6. h3 {[%clk 0:02:46]}  h5 {[%clk 0:02:54]} 7. d3 {[%clk 0:02:45]}  Bd4 {[%clk 0:02:46]} 8. Be3 {[%clk 0:02:45]}  Be6 {[%clk 0:02:46]} 9. Qd2 {[%clk 0:02:40]}  h4 {[%clk 0:02:45]} 10. Be2 {[%clk 0:02:36]}  Qd6 {[%clk 0:02:43]} 11. f4 {[%clk 0:02:32]}  Bxe3 {[%clk 0:02:43]} 12. Qxe3 {[%clk 0:02:33]}  Qb4 {[%clk 0:02:43]} 13. O-O-O {[%clk 0:02:19]}  Qa5 {[%clk 0:02:23]} 14. a3 {[%clk 0:02:10]}  O-O-O {[%clk 0:02:21]} 15. e5 {[%clk 0:02:05]}  Nd5 {[%clk 0:02:20]} 16. Nxd5 {[%clk 0:02:05]}  Qxd5 {[%clk 0:01:35]} 17. c4 {[%clk 0:01:38]}  Qa5 {[%clk 0:01:22]} 18. Bg4 {[%clk 0:01:34]}  Kb8 {[%clk 0:01:20]} 19. f5 {[%clk 0:01:28]}  Bc8 {[%clk 0:01:18]} 20. e6 {[%clk 0:01:24]}  Rhe8 {[%clk 0:01:10]} 21. Rhe1 {[%clk 0:01:23]}  g6 {[%clk 0:00:57]} 22. e7 {[%clk 0:01:13]}  Rd6 {[%clk 0:00:42]} 23. fxg6 {[%clk 0:01:13]}  Rxg6 {[%clk 0:00:39]} 24. Bxc8 {[%clk 0:01:12]}  Kxc8 {[%clk 0:00:39]} 25. Kb1 {[%clk 0:01:00]}  Re6 {[%clk 0:00:33]} 26. Qf2 {[%clk 0:00:43]}  R8xe7 {[%clk 0:00:32]} 27. Rxe6 {[%clk 0:00:42]}  fxe6 {[%clk 0:00:33]} 28. Qxh4 {[%clk 0:00:38]}  Re8 {[%clk 0:00:25]} 29. Qf6 {[%clk 0:00:36]}  Qh5 {[%clk 0:00:22]} 30. Re1 {[%clk 0:00:32]}  e5 {[%clk 0:00:14]} 31. Qf3 {[%clk 0:00:23]}  Qg5 {[%clk 0:00:05]} 32. Re2 {[%clk 0:00:18]}  a5 {[%clk 0:00:05]} 33. g4 {[%clk 0:00:16]}  a4 {[%clk 0:00:05]} 34. Qf5+ {[%clk 0:00:16]}  Qxf5 {[%clk 0:00:05]} 35. gxf5 {[%clk 0:00:17]}  Kd7 {[%clk 0:00:06]} 36. d4 {[%clk 0:00:17]}  Rf8 {[%clk 0:00:02]} 37. Rxe5 {[%clk 0:00:16]}  Rh8 {[%clk 0:00:02]} 38. d5 {[%clk 0:00:13]}  Rxh3 {[%clk 0:00:02]} 39. dxc6+ {[%clk 0:00:13]}  bxc6 {[%clk 0:00:03]} 40. Kc2 {[%clk 0:00:07]}  Rf3 {[%clk 0:00:02]} 41. c5 {[%clk 0:00:06]}  Kc8 {[%clk 0:00:02]} 42. Kd2 {[%clk 0:00:03]}  Kd7 {[%clk 0:00:02]} 43. Kc2 {[%clk 0:00:04]}  Kd8 {[%clk 0:00:01]} 44. Re6 {[%clk 0:00:04]}  Kd7 {[%clk 0:00:01]} 45. Rf6 {[%clk 0:00:04]} 1-0


[Site "https://www.chess.com"]

[Event "Titled Tuesday Blitz July 26 Late 2022"]
[White "Fedoseev, Vladimir"]
[Black "Drygalov, Andrey"]
[WhiteFideId "24130737"]
[BlackFideId "24171735"]
[WhiteElo "2726"]
[BlackElo "2531"]
[Result "1-0"]
[Round "04"]
[TimeControl "180+1"]
[Date "2022.07.26"]
[WhiteClock "0:00:10"]
[BlackClock "0:00:01"]

1. d4 {[%clk 0:03:00]}  Nf6 {[%clk 0:02:59]} 2. c4 {[%clk 0:03:00]}  e6 {[%clk 0:02:59]} 3. Nf3 {[%clk 0:03:00]}  d5 {[%clk 0:02:59]} 4. Nc3 {[%clk 0:03:00]}  c6 {[%clk 0:03:00]} 5. Bg5 {[%clk 0:02:58]}  h6 {[%clk 0:03:00]} 6. Bxf6 {[%clk 0:02:59]}  Qxf6 {[%clk 0:03:00]} 7. g3 {[%clk 0:02:59]}  Nd7 {[%clk 0:02:54]} 8. Qd3 {[%clk 0:02:47]}  dxc4 {[%clk 0:02:38]} 9. Qxc4 {[%clk 0:02:46]}  e5 {[%clk 0:02:38]} 10. dxe5 {[%clk 0:01:58]}  Nxe5 {[%clk 0:02:27]} 11. Nxe5 {[%clk 0:01:56]}  Qxe5 {[%clk 0:02:27]} 12. Bg2 {[%clk 0:01:57]}  Qc5 {[%clk 0:02:04]} 13. Qe4+ {[%clk 0:01:38]}  Be7 {[%clk 0:02:04]} 14. O-O {[%clk 0:01:31]}  Bf5 {[%clk 0:02:02]} 15. Qf4 {[%clk 0:01:23]}  O-O {[%clk 0:01:58]} 16. Nd5 {[%clk 0:01:19]}  Bc2 {[%clk 0:01:08]} 17. Nxe7+ {[%clk 0:00:50]}  Qxe7 {[%clk 0:01:09]} 18. Rac1 {[%clk 0:00:50]}  Bg6 {[%clk 0:01:03]} 19. Bf3 {[%clk 0:00:49]}  a5 {[%clk 0:00:50]} 20. Rc4 {[%clk 0:00:43]}  f6 {[%clk 0:00:48]} 21. Rfc1 {[%clk 0:00:41]}  Bf7 {[%clk 0:00:47]} 22. Re4 {[%clk 0:00:41]}  Qd7 {[%clk 0:00:44]} 23. Rd4 {[%clk 0:00:40]}  Qe7 {[%clk 0:00:44]} 24. a3 {[%clk 0:00:39]}  Rad8 {[%clk 0:00:37]} 25. Rcd1 {[%clk 0:00:38]}  Rxd4 {[%clk 0:00:36]} 26. Qxd4 {[%clk 0:00:39]}  Re8 {[%clk 0:00:34]} 27. e3 {[%clk 0:00:38]}  Qe5 {[%clk 0:00:30]} 28. Qxe5 {[%clk 0:00:32]}  Rxe5 {[%clk 0:00:17]} 29. Rd8+ {[%clk 0:00:32]}  Re8 {[%clk 0:00:17]} 30. Rd7 {[%clk 0:00:32]}  Rb8 {[%clk 0:00:17]} 31. Bg4 {[%clk 0:00:27]}  c5 {[%clk 0:00:07]} 32. Rc7 {[%clk 0:00:19]}  c4 {[%clk 0:00:06]} 33. Be2 {[%clk 0:00:07]}  b5 {[%clk 0:00:07]} 34. Rc5 {[%clk 0:00:08]}  Kf8 {[%clk 0:00:06]} 35. f4 {[%clk 0:00:07]}  Ke7 {[%clk 0:00:07]} 36. Rc7+ {[%clk 0:00:07]}  Kf8 {[%clk 0:00:07]} 37. Kf2 {[%clk 0:00:07]}  b4 {[%clk 0:00:07]} 38. Bxc4 {[%clk 0:00:05]}  Bxc4 {[%clk 0:00:07]} 39. Rxc4 {[%clk 0:00:06]}  bxa3 {[%clk 0:00:07]} 40. bxa3 {[%clk 0:00:07]}  Rb2+ {[%clk 0:00:08]} 41. Kf3 {[%clk 0:00:07]}  Rb3 {[%clk 0:00:07]} 42. Ra4 {[%clk 0:00:07]}  Rb5 {[%clk 0:00:08]} 43. g4 {[%clk 0:00:07]}  Ke7 {[%clk 0:00:08]} 44. f5 {[%clk 0:00:07]}  Kd6 {[%clk 0:00:09]} 45. Rd4+ {[%clk 0:00:07]}  Ke7 {[%clk 0:00:09]} 46. Re4+ {[%clk 0:00:07]}  Kd6 {[%clk 0:00:07]} 47. Re6+ {[%clk 0:00:07]}  Kd7 {[%clk 0:00:07]} 48. Ra6 {[%clk 0:00:08]}  Ke7 {[%clk 0:00:08]} 49. Ra7+ {[%clk 0:00:08]}  Kf8 {[%clk 0:00:08]} 50. Kf4 {[%clk 0:00:08]}  Rc5 {[%clk 0:00:08]} 51. h4 {[%clk 0:00:08]}  Kg8 {[%clk 0:00:08]} 52. e4 {[%clk 0:00:08]}  Rb5 {[%clk 0:00:08]} 53. g5 {[%clk 0:00:08]}  hxg5+ {[%clk 0:00:08]} 54. hxg5 {[%clk 0:00:09]}  fxg5+ {[%clk 0:00:06]} 55. Kxg5 {[%clk 0:00:09]}  Kf8 {[%clk 0:00:06]} 56. Kf4 {[%clk 0:00:08]}  Rc5 {[%clk 0:00:07]} 57. e5 {[%clk 0:00:08]}  Rc4+ {[%clk 0:00:02]} 58. Kg5 {[%clk 0:00:09]}  Rc3 {[%clk 0:00:02]} 59. Rxa5 {[%clk 0:00:08]}  Rg3+ {[%clk 0:00:02]} 60. Kf4 {[%clk 0:00:08]}  Rg1 {[%clk 0:00:03]} 61. Ra8+ {[%clk 0:00:08]}  Kf7 {[%clk 0:00:03]} 62. Ra7+ {[%clk 0:00:09]}  Kf8 {[%clk 0:00:04]} 63. a4 {[%clk 0:00:09]}  Rf1+ {[%clk 0:00:05]} 64. Ke4 {[%clk 0:00:10]}  Rd1 {[%clk 0:00:05]} 65. a5 {[%clk 0:00:09]}  Kg8 {[%clk 0:00:03]} 66. a6 {[%clk 0:00:09]}  Ra1 {[%clk 0:00:03]} 67. Kd5 {[%clk 0:00:09]}  Rb1 {[%clk 0:00:04]} 68. Kd6 {[%clk 0:00:08]}  Rd1+ {[%clk 0:00:04]} 69. Ke6 {[%clk 0:00:09]}  Rb1 {[%clk 0:00:04]} 70. Ra8+ {[%clk 0:00:09]}  Kh7 {[%clk 0:00:04]} 71. f6 {[%clk 0:00:09]}  gxf6 {[%clk 0:00:04]} 72. exf6 {[%clk 0:00:10]}  Re1+ {[%clk 0:00:02]} 73. Kf7 {[%clk 0:00:10]}  Ra1 {[%clk 0:00:03]} 74. a7 {[%clk 0:00:10]}  Ra2 {[%clk 0:00:01]} 75. Ke7 {[%clk 0:00:11]}  Re2+ {[%clk 0:00:02]} 76. Kd6 {[%clk 0:00:10]}  Rd2+ {[%clk 0:00:02]} 77. Ke5 {[%clk 0:00:11]}  Re2+ {[%clk 0:00:02]} 78. Kd4 {[%clk 0:00:11]}  Rf2 {[%clk 0:00:01]} 79. Rh8+ {[%clk 0:00:10]} 1-0


[Site "https://www.chess.com"]

[Event "Titled Tuesday Blitz July 26 Late 2022"]
[White "Fieberg, Samuel"]
[Black "Tatarinov, Dmitry"]
[WhiteFideId "12901717"]
[BlackFideId "24160067"]
[WhiteElo "2425"]
[BlackElo "2302"]
[Result "0-1"]
[Round "04"]
[TimeControl "180+1"]
[Date "2022.07.27"]
[WhiteClock "0:00:09"]
[BlackClock "0:01:35"]

1. d4 {[%clk 0:03:00]}  d5 {[%clk 0:02:59]} 2. Nc3 {[%clk 0:03:01]}  Nf6 {[%clk 0:02:59]} 3. Bf4 {[%clk 0:03:01]}  a6 {[%clk 0:02:58]} 4. e3 {[%clk 0:03:01]}  b5 {[%clk 0:02:55]} 5. a4 {[%clk 0:02:56]}  b4 {[%clk 0:02:54]} 6. Na2 {[%clk 0:02:54]}  e6 {[%clk 0:02:53]} 7. g4 {[%clk 0:02:44]}  c5 {[%clk 0:02:50]} 8. g5 {[%clk 0:02:44]}  Nfd7 {[%clk 0:02:49]} 9. Nf3 {[%clk 0:02:34]}  Nc6 {[%clk 0:02:49]} 10. h4 {[%clk 0:01:59]}  c4 {[%clk 0:02:47]} 11. c3 {[%clk 0:01:57]}  b3 {[%clk 0:02:47]} 12. Nc1 {[%clk 0:01:57]}  Bb7 {[%clk 0:02:46]} 13. Ne2 {[%clk 0:01:51]}  Qa5 {[%clk 0:02:41]} 14. Ng3 {[%clk 0:01:50]}  O-O-O {[%clk 0:02:41]} 15. Bg2 {[%clk 0:01:46]}  Re8 {[%clk 0:02:29]} 16. Ne5 {[%clk 0:01:08]}  Ndxe5 {[%clk 0:02:28]} 17. Bxe5 {[%clk 0:01:07]}  Qd8 {[%clk 0:02:24]} 18. Bf4 {[%clk 0:00:57]}  f6 {[%clk 0:02:13]} 19. gxf6 {[%clk 0:00:54]}  gxf6 {[%clk 0:02:13]} 20. Qh5 {[%clk 0:00:52]}  e5 {[%clk 0:02:09]} 21. dxe5 {[%clk 0:00:52]}  fxe5 {[%clk 0:02:09]} 22. Bg5 {[%clk 0:00:47]}  Be7 {[%clk 0:02:04]} 23. O-O-O {[%clk 0:00:26]}  d4 {[%clk 0:01:57]} 24. exd4 {[%clk 0:00:25]}  exd4 {[%clk 0:01:57]} 25. Bxe7 {[%clk 0:00:23]}  Qxe7 {[%clk 0:01:56]} 26. Nf5 {[%clk 0:00:19]}  Qe2 {[%clk 0:01:49]} 27. Qxe2 {[%clk 0:00:17]}  Rxe2 {[%clk 0:01:50]} 28. Bxc6 {[%clk 0:00:17]}  Rc2+ {[%clk 0:01:38]} 29. Kb1 {[%clk 0:00:18]}  Bxc6 {[%clk 0:01:37]} 30. Nxd4 {[%clk 0:00:18]}  Bxh1 {[%clk 0:01:36]} 31. Rxh1 {[%clk 0:00:11]}  Rxf2 {[%clk 0:01:36]} 32. Nc6 {[%clk 0:00:09]}  Rhf8 {[%clk 0:01:35]} 33. Na5 {[%clk 0:00:09]}  Rf1+ {[%clk 0:01:35]} 0-1


[Site "https://www.chess.com"]

[Event "Titled Tuesday Blitz July 26 Late 2022"]
[White "Golubenko, Valentina"]
[Black "Rios Escobar, Adan"]
[WhiteFideId "4501993"]
[BlackFideId "3403645"]
[WhiteElo "2164"]
[BlackElo "2405"]
[Result "1-0"]
[Round "04"]
[TimeControl "180+1"]
[Date "2022.07.27"]
[WhiteClock "0:00:14"]
[BlackClock "0:00:09"]

1. d4 {[%clk 0:03:00]}  Nf6 {[%clk 0:02:54]} 2. c4 {[%clk 0:03:00]}  g6 {[%clk 0:02:54]} 3. g3 {[%clk 0:03:00]}  c5 {[%clk 0:02:53]} 4. d5 {[%clk 0:03:00]}  b5 {[%clk 0:02:54]} 5. Bg2 {[%clk 0:03:00]}  d6 {[%clk 0:02:49]} 6. Nd2 {[%clk 0:02:56]}  b4 {[%clk 0:02:47]} 7. Ngf3 {[%clk 0:02:54]}  Bg7 {[%clk 0:02:46]} 8. e4 {[%clk 0:02:54]}  Ng4 {[%clk 0:02:39]} 9. O-O {[%clk 0:02:52]}  O-O {[%clk 0:02:39]} 10. h3 {[%clk 0:02:52]}  Ne5 {[%clk 0:02:39]} 11. Nxe5 {[%clk 0:02:52]}  Bxe5 {[%clk 0:02:39]} 12. f4 {[%clk 0:02:53]}  Bd4+ {[%clk 0:02:40]} 13. Kh2 {[%clk 0:02:53]}  Nd7 {[%clk 0:02:40]} 14. Nf3 {[%clk 0:02:53]}  Bg7 {[%clk 0:02:41]} 15. Qe2 {[%clk 0:02:51]}  a5 {[%clk 0:02:31]} 16. e5 {[%clk 0:02:50]}  a4 {[%clk 0:02:23]} 17. a3 {[%clk 0:02:27]}  Nb6 {[%clk 0:02:07]} 18. Be3 {[%clk 0:02:20]}  Ba6 {[%clk 0:01:42]} 19. Nd2 {[%clk 0:02:19]}  Qc7 {[%clk 0:01:17]} 20. axb4 {[%clk 0:02:04]}  cxb4 {[%clk 0:01:13]} 21. Bxb6 {[%clk 0:02:04]}  Qxb6 {[%clk 0:01:13]} 22. Rxa4 {[%clk 0:02:04]}  dxe5 {[%clk 0:01:10]} 23. fxe5 {[%clk 0:02:03]}  Rac8 {[%clk 0:01:03]} 24. b3 {[%clk 0:01:51]}  h5 {[%clk 0:01:02]} 25. h4 {[%clk 0:01:48]}  Bb7 {[%clk 0:01:01]} 26. Nf3 {[%clk 0:01:42]}  e6 {[%clk 0:00:47]} 27. Qd2 {[%clk 0:01:17]}  exd5 {[%clk 0:00:41]} 28. Rxb4 {[%clk 0:01:17]}  Qc7 {[%clk 0:00:24]} 29. cxd5 {[%clk 0:01:12]}  Ba6 {[%clk 0:00:18]} 30. Re1 {[%clk 0:01:09]}  Rfd8 {[%clk 0:00:18]} 31. d6 {[%clk 0:01:07]}  Qc2 {[%clk 0:00:15]} 32. Rd1 {[%clk 0:00:54]}  Be2 {[%clk 0:00:13]} 33. Qxc2 {[%clk 0:00:50]}  Rxc2 {[%clk 0:00:14]} 34. Rd2 {[%clk 0:00:39]}  Rxd2 {[%clk 0:00:11]} 35. Nxd2 {[%clk 0:00:39]}  Bxe5 {[%clk 0:00:12]} 36. Re4 {[%clk 0:00:39]}  Bxg3+ {[%clk 0:00:09]} 37. Kxg3 {[%clk 0:00:38]}  Bd3 {[%clk 0:00:10]} 38. Rd4 {[%clk 0:00:38]}  Bc2 {[%clk 0:00:10]} 39. b4 {[%clk 0:00:37]}  Ba4 {[%clk 0:00:09]} 40. Nc4 {[%clk 0:00:37]}  Kg7 {[%clk 0:00:08]} 41. Nb6 {[%clk 0:00:35]}  Bb5 {[%clk 0:00:08]} 42. d7 {[%clk 0:00:35]}  Kf6 {[%clk 0:00:08]} 43. Kf4 {[%clk 0:00:32]}  Ke7 {[%clk 0:00:08]} 44. Bh3 {[%clk 0:00:28]}  f6 {[%clk 0:00:08]} 45. Nd5+ {[%clk 0:00:27]}  Kf7 {[%clk 0:00:07]} 46. Nc7 {[%clk 0:00:27]}  Ba4 {[%clk 0:00:06]} 47. b5 {[%clk 0:00:26]}  Bb3 {[%clk 0:00:04]} 48. b6 {[%clk 0:00:25]}  f5 {[%clk 0:00:04]} 49. b7 {[%clk 0:00:23]}  Be6 {[%clk 0:00:04]} 50. Nxe6 {[%clk 0:00:20]}  Kxe6 {[%clk 0:00:03]} 51. Bg2 {[%clk 0:00:21]}  Ke7 {[%clk 0:00:03]} 52. Kg5 {[%clk 0:00:21]}  Rb8 {[%clk 0:00:02]} 53. Bc6 {[%clk 0:00:20]}  Kd8 {[%clk 0:00:03]} 54. Kxg6 {[%clk 0:00:21]}  f4 {[%clk 0:00:03]} 55. Rxf4 {[%clk 0:00:20]}  Kc7 {[%clk 0:00:04]} 56. Rf7 {[%clk 0:00:20]}  Rd8 {[%clk 0:00:04]} 57. Kxh5 {[%clk 0:00:20]}  Kxc6 {[%clk 0:00:04]} 58. Kg6 {[%clk 0:00:16]}  Kxb7 {[%clk 0:00:04]} 59. h5 {[%clk 0:00:17]}  Kc7 {[%clk 0:00:05]} 60. h6 {[%clk 0:00:16]}  Rh8 {[%clk 0:00:05]} 61. h7 {[%clk 0:00:17]}  Kd8 {[%clk 0:00:06]} 62. Kg7 {[%clk 0:00:16]}  Rxh7+ {[%clk 0:00:05]} 63. Kxh7 {[%clk 0:00:16]}  Kc7 {[%clk 0:00:05]} 64. Kg7 {[%clk 0:00:16]}  Kd8 {[%clk 0:00:06]} 65. Kf8 {[%clk 0:00:15]}  Kc7 {[%clk 0:00:07]} 66. Ke7 {[%clk 0:00:15]}  Kb7 {[%clk 0:00:06]} 67. d8=Q {[%clk 0:00:14]}  Kc6 {[%clk 0:00:07]} 68. Qd7+ {[%clk 0:00:13]}  Kb6 {[%clk 0:00:07]} 69. Rf6+ {[%clk 0:00:13]}  Kc5 {[%clk 0:00:08]} 70. Qd6+ {[%clk 0:00:13]}  Kb5 {[%clk 0:00:08]} 71. Rf5+ {[%clk 0:00:13]}  Kc4 {[%clk 0:00:08]} 72. Qd5+ {[%clk 0:00:14]}  Kb4 {[%clk 0:00:08]} 73. Rf4+ {[%clk 0:00:14]}  Kc3 {[%clk 0:00:08]} 74. Qd4+ {[%clk 0:00:14]}  Kc2 {[%clk 0:00:09]} 75. Rf2+ {[%clk 0:00:14]}  Kb1 {[%clk 0:00:09]} 76. Qb2# {[%clk 0:00:14]} 1-0


[Site "https://www.chess.com"]

[Event "Titled Tuesday Blitz July 26 Late 2022"]
[White "Grigoriants, Sergey"]
[Black "Fishbein, Alexander"]
[WhiteFideId "4130804"]
[BlackFideId "2000377"]
[WhiteElo "2502"]
[BlackElo "2410"]
[Result "1/2-1/2"]
[Round "04"]
[TimeControl "180+1"]
[Date "2022.07.26"]
[WhiteClock "0:00:03"]
[BlackClock "0:00:04"]

1. e4 {[%clk 0:03:00]}  c5 {[%clk 0:02:57]} 2. Nf3 {[%clk 0:03:00]}  d6 {[%clk 0:02:57]} 3. d4 {[%clk 0:03:00]}  cxd4 {[%clk 0:02:57]} 4. Nxd4 {[%clk 0:03:01]}  Nf6 {[%clk 0:02:58]} 5. Nc3 {[%clk 0:03:01]}  Nc6 {[%clk 0:02:58]} 6. Bg5 {[%clk 0:03:00]}  e6 {[%clk 0:02:58]} 7. Qd2 {[%clk 0:03:00]}  Be7 {[%clk 0:02:58]} 8. O-O-O {[%clk 0:03:00]}  O-O {[%clk 0:02:57]} 9. f4 {[%clk 0:02:57]}  h6 {[%clk 0:02:57]} 10. Bh4 {[%clk 0:02:55]}  Qb6 {[%clk 0:02:57]} 11. Bf2 {[%clk 0:02:44]}  Qc7 {[%clk 0:02:56]} 12. Be2 {[%clk 0:02:41]}  e5 {[%clk 0:02:56]} 13. Nf5 {[%clk 0:02:39]}  Bxf5 {[%clk 0:02:54]} 14. exf5 {[%clk 0:02:40]}  d5 {[%clk 0:02:48]} 15. Kb1 {[%clk 0:02:12]}  Rad8 {[%clk 0:02:29]} 16. fxe5 {[%clk 0:01:26]}  Qxe5 {[%clk 0:02:26]} 17. Bd3 {[%clk 0:01:07]}  Ne4 {[%clk 0:02:21]} 18. Qe1 {[%clk 0:01:05]}  Nxc3+ {[%clk 0:01:38]} 19. Qxc3 {[%clk 0:01:01]}  Qxc3 {[%clk 0:01:38]} 20. bxc3 {[%clk 0:01:02]}  Bf6 {[%clk 0:01:38]} 21. Kb2 {[%clk 0:00:45]}  Rd6 {[%clk 0:01:33]} 22. Bc5 {[%clk 0:00:43]}  Rfd8 {[%clk 0:01:26]} 23. Bxd6 {[%clk 0:00:42]}  Rxd6 {[%clk 0:01:27]} 24. Bc4 {[%clk 0:00:35]}  Ne7 {[%clk 0:01:06]} 25. Bb3 {[%clk 0:00:35]}  Nxf5 {[%clk 0:01:02]} 26. Rxd5 {[%clk 0:00:33]}  Rxd5 {[%clk 0:00:54]} 27. Bxd5 {[%clk 0:00:34]}  b6 {[%clk 0:00:51]} 28. Kb3 {[%clk 0:00:34]}  Kf8 {[%clk 0:00:49]} 29. Re1 {[%clk 0:00:33]}  g6 {[%clk 0:00:46]} 30. Bc4 {[%clk 0:00:27]}  Nd6 {[%clk 0:00:44]} 31. Bd3 {[%clk 0:00:26]}  Kg7 {[%clk 0:00:42]} 32. c4 {[%clk 0:00:24]}  Nb7 {[%clk 0:00:41]} 33. Re8 {[%clk 0:00:21]}  a6 {[%clk 0:00:33]} 34. Rb8 {[%clk 0:00:15]}  Nc5+ {[%clk 0:00:26]} 35. Kb4 {[%clk 0:00:15]}  Be7 {[%clk 0:00:23]} 36. Kc3 {[%clk 0:00:14]}  Bd6 {[%clk 0:00:18]} 37. Rc8 {[%clk 0:00:11]}  Bxh2 {[%clk 0:00:17]} 38. Kd4 {[%clk 0:00:11]}  h5 {[%clk 0:00:16]} 39. Rc6 {[%clk 0:00:10]}  Bg1+ {[%clk 0:00:15]} 40. Kd5 {[%clk 0:00:09]}  Ne6 {[%clk 0:00:15]} 41. Bf1 {[%clk 0:00:05]}  h4 {[%clk 0:00:13]} 42. Rxe6 {[%clk 0:00:02]}  fxe6+ {[%clk 0:00:12]} 43. Kxe6 {[%clk 0:00:03]}  Kh6 {[%clk 0:00:11]} 44. Kf6 {[%clk 0:00:03]}  Bd4+ {[%clk 0:00:10]} 45. Ke6 {[%clk 0:00:02]}  Kg5 {[%clk 0:00:10]} 46. c5 {[%clk 0:00:03]}  Bxc5 {[%clk 0:00:09]} 47. Bxa6 {[%clk 0:00:03]}  Kf4 {[%clk 0:00:10]} 48. Bd3 {[%clk 0:00:02]}  g5 {[%clk 0:00:09]} 49. Kd5 {[%clk 0:00:02]}  g4 {[%clk 0:00:08]} 50. Kc4 {[%clk 0:00:02]}  Kg3 {[%clk 0:00:08]} 51. Be4 {[%clk 0:00:02]}  Kf4 {[%clk 0:00:06]} 52. Bc6 {[%clk 0:00:02]}  h3 {[%clk 0:00:06]} 53. gxh3 {[%clk 0:00:02]}  gxh3 {[%clk 0:00:06]} 54. a4 {[%clk 0:00:03]}  Bg1 {[%clk 0:00:06]} 55. Kb5 {[%clk 0:00:03]}  Kg3 {[%clk 0:00:05]} 56. c4 {[%clk 0:00:03]}  Kf4 {[%clk 0:00:04]} 57. a5 {[%clk 0:00:02]}  bxa5 {[%clk 0:00:04]} 58. Kxa5 {[%clk 0:00:03]}  Kg5 {[%clk 0:00:04]} 59. Kb5 {[%clk 0:00:03]} 1/2-1/2


[Site "https://www.chess.com"]